bitfinex/quotes_ETHUSD_20260213
["timestamp","ask_amount","ask_price","bid_price","bid_amount"]
[1770974693503,1.859,1964.0,1963.3,0.45473792]
[1770974694563,0.47907277,1963.9,1963.2,0.001]
[1770974694980,0.47907277,1963.7,1963.2,0.001]
[1770974696110,1.27304206,1963.8,1963.2,0.001]
[1770974696298,1.858,1963.6,1963.2,0.001]
[1770974697109,3.1312144,1963.6,1963.2,0.001]
[1770974699401,0.47907277,1963.5,1963.2,0.001]
[1770974699791,0.47907277,1963.5,1962.8,0.001]
[1770974700283,0.47907277,1963.4,1962.8,0.001]
[1770974700482,1.09626237,1963.3,1962.8,0.001]
[1770974700685,0.46918656,1963.2,1962.8,0.001]
[1770974701017,0.46918656,1963.0,1962.1,0.45937399]
[1770974701218,1.74281231,1962.9,1962.1,0.45937399]
[1770974701384,1.27354427,1963.1,1962.2,0.45937399]
[1770974701585,1.865,1963.0,1962.2,0.45937399]
[1770974701897,1.27343113,1963.2,1962.2,0.45937399]
[1770974702075,1.27343113,1963.2,1962.3,0.45937399]
[1770974702271,1.865,1963.1,1962.3,0.45937399]
[1770974702502,1.115,1963.2,1962.3,0.45937399]
[1770974703478,2.38847052,1963.2,1962.5,0.45937399]
[1770974706006,2.85765708,1963.2,1962.4,0.001]
[1770974706188,2.38847052,1963.2,1962.5,0.45937399]
[1770974706588,0.46918656,1963.1,1962.4,0.001]
[1770974707571,1.74274743,1963.0,1962.4,0.001]
[1770974709211,1.27356087,1963.0,1962.4,0.46037399]
[1770974709416,1.867,1963.0,1962.4,0.46037399]
[1770974709715,1.867,1963.0,1962.5,1.73325934]
[1770974710827,3.14056884,1963.0,1962.5,1.73325934]
[1770974711030,3.6097554,1963.0,1962.4,0.001]
[1770974712225,3.14056884,1963.0,1962.4,0.001]
[1770974712591,1.867,1962.9,1962.4,0.001]
[1770974713529,1.867,1962.9,1962.4,0.46037399]
[1770974715533,1.867,1962.9,1962.4,1.73430001]
[1770974716123,1.867,1962.9,1962.5,0.45937399]
[1770974716353,1.27356884,1963.0,1962.5,0.45937399]
[1770974716354,1.866,1963.0,1962.5,0.45937399]
[1770974717631,1.865,1963.2,1962.5,0.45937399]
[1770974718558,1.865,1963.2,1962.5,1.73325916]
[1770974719237,2.33418656,1963.2,1962.4,1.27489979]
[1770974719538,2.33418656,1963.2,1962.6,0.001]
[1770974719705,1.275496,1963.1,1962.6,0.001]
[1770974722848,1.74468256,1963.1,1962.6,0.001]
[1770974723023,0.46918656,1963.0,1962.6,0.001]
[1770974724146,1.74281231,1962.9,1962.6,0.001]
[1770974724326,1.864,1962.8,1962.6,0.001]
[1770974725745,2.33318656,1962.8,1962.4,0.001]
[1770974726112,1.27375554,1962.7,1962.4,0.001]
[1770974727318,1.27375554,1962.7,1962.3,0.001]
[1770974727816,1.56831285,1962.6,1962.3,0.001]
[1770974728017,0.46918656,1962.5,1962.0,0.001]
[1770974728240,3.14495026,1962.4,1962.0,0.001]
[1770974730142,3.14495026,1962.4,1962.0,0.46037399]
[1770974731148,3.14495026,1962.4,1961.9,0.001]
[1770974732744,3.14495026,1962.4,1962.1,0.001]
[1770974733823,3.62047843,1962.4,1961.9,0.001]
[1770974735959,5.09539138,1962.6,1962.0,0.48563352]
[1770974736142,1.881,1962.5,1962.0,0.48563352]
[1770974736329,1.881,1962.5,1961.9,0.48663352]
[1770974736526,2.3439137,1962.5,1961.9,0.001]
[1770974736946,1.27395026,1962.4,1961.9,0.001]
[1770974739423,1.27395026,1962.4,1961.9,0.48663352]
[1770974740044,1.27395026,1962.4,1961.9,0.001]
[1770974740656,1.73686396,1962.4,1961.9,0.001]
[1770974740870,1.27395026,1962.4,1961.9,0.48663352]
[1770974741052,1.73686396,1962.4,1961.9,0.001]
[1770974741354,1.27395026,1962.4,1961.9,0.48663352]
[1770974743767,3.15493048,1962.5,1961.9,0.48663352]
[1770974744330,1.27393048,1962.5,1961.9,1.76089925]
[1770974744545,1.892,1962.4,1962.0,0.48563352]
[1770974745358,1.892,1962.4,1962.0,0.48663352]
[1770974745554,3.16800995,1962.4,1962.0,0.48663352]
[1770974747659,3.16800995,1962.4,1962.0,0.001]
[1770974748654,3.16795783,1962.4,1962.0,0.001]
[1770974748862,3.63087153,1962.4,1962.0,0.001]
[1770974749357,0.4629137,1962.3,1961.6,0.001]
[1770974749568,1.56176812,1962.3,1961.6,0.001]
[1770974749735,1.27408011,1962.2,1961.6,0.48663352]
[1770974749939,1.899,1962.1,1961.6,0.48663352]
[1770974750460,1.27408011,1962.2,1961.6,0.48663352]
[1770974750461,1.899,1962.2,1961.6,0.48663352]
[1770974751964,3.17310034,1962.2,1961.7,0.48563352]
[1770974753734,3.17310034,1962.2,1961.6,0.001]
[1770974753944,3.17310034,1962.2,1961.6,1.27546787]
[1770974754253,3.17310034,1962.2,1961.6,1.76110139]
[1770974758351,3.17310034,1962.2,1961.7,0.001]
[1770974758552,0.002,1962.1,1961.7,0.001]
[1770974760977,6.43009323,1962.1,1961.7,0.001]
[1770974761556,6.9294796,1962.1,1961.7,0.001]
[1770974761754,6.43009323,1962.1,1961.7,0.001]
[1770974762378,7.70427495,1962.1,1961.7,0.001]
[1770974763358,6.42809323,1961.9,1961.5,0.001]
[1770974763693,1.908,1961.8,1961.5,0.001]
[1770974764582,3.18236785,1961.8,1961.5,0.001]
[1770974765375,1.908,1961.8,1961.6,0.47779208]
[1770974767077,1.908,1961.8,1961.5,0.001]
[1770974769408,3.18235485,1961.8,1961.5,0.001]
[1770974769993,1.908,1961.8,1961.5,0.001]
[1770974770225,3.18234723,1961.8,1961.5,0.001]
[1770974771013,3.18234723,1961.8,1961.7,0.001]
[1770974771514,3.18434723,1961.8,1961.7,0.001]
[1770974772810,1.91,1961.8,1961.7,0.001]
[1770974778316,0.002,1961.8,1961.7,0.47879208]
[1770974778615,1.929,1961.8,1961.7,0.47879208]
[1770974783489,3.20333989,1961.8,1961.5,0.001]
[1770974787526,3.70272626,1961.8,1961.5,0.001]
[1770974787709,3.20333989,1961.8,1961.5,0.001]
[1770974792695,10.08839975,1961.8,1961.2,0.46704703]
[1770974793033,6.42809323,1961.6,1961.2,0.46704703]
[1770974793240,1.941,1961.5,1961.2,0.46704703]
[1770974795029,1.941,1961.5,1961.3,0.001]
[1770974795236,3.21554318,1961.5,1961.3,0.001]
[1770974795704,1.941,1961.5,1961.3,0.001]
[1770974799535,3.21553656,1961.5,1961.3,0.001]
[1770974801038,1.941,1961.5,1961.3,0.001]
[1770974801818,3.21554201,1961.5,1961.2,0.001]
[1770974802233,3.21553925,1961.5,1961.2,0.001]
[1770974802434,1.941,1961.5,1961.2,0.47061348]
[1770974803741,1.941,1961.5,1961.3,0.46961348]
[1770974803941,0.002,1961.7,1961.3,0.46961348]
[1770974804147,1.956,1961.7,1961.3,0.46961348]
[1770974806151,1.956,1961.7,1961.5,0.46961348]
[1770974807846,0.002,1961.6,1961.5,0.46961348]
[1770974808722,11.98967991,1962.1,1961.7,0.46961348]
[1770974808723,1.955,1962.1,1961.7,0.46961348]
[1770974809250,0.002,1962.0,1961.7,0.46961348]
[1770974809451,0.002,1962.2,1961.7,0.46961348]
[1770974809829,0.002,1962.2,1961.9,0.46961348]
[1770974810433,0.002,1962.2,1962.1,0.46961348]
[1770974810960,0.002,1962.5,1962.2,0.46961348]
[1770974811256,0.01,1962.5,1962.2,0.46961348]
[1770974813368,0.01,1962.5,1962.2,1.27407571]
[1770974813565,0.01,1962.5,1962.3,0.46961348]
[1770974815350,0.002,1962.5,1962.3,0.46961348]
[1770974816063,0.01,1962.5,1962.3,0.46961348]
[1770974816764,0.01,1962.5,1961.9,0.46961348]
[1770974816935,0.01,1962.5,1962.1,0.46961348]
[1770974817131,0.002,1962.5,1962.1,0.46961348]
[1770974818267,0.01,1962.5,1962.1,0.46961348]
[1770974818761,0.002,1962.6,1962.4,0.46961348]
[1770974819135,0.002,1962.6,1962.4,1.7435632]
[1770974820147,0.002,1962.6,1962.5,0.46961348]
[1770974821480,0.002,1963.0,1962.6,0.49675558]
[1770974821853,1.27556948,1963.0,1962.6,0.49675558]
[1770974822267,1.27556948,1963.0,1962.4,1.27390492]
[1770974822457,0.46719437,1962.7,1962.3,0.001]
[1770974822801,2.41919437,1962.7,1962.3,0.001]
[1770974823081,1.27388535,1962.5,1962.3,0.001]
[1770974823443,3.22576214,1962.7,1962.3,0.001]
[1770974823668,3.69295651,1962.7,1962.3,0.001]
[1770974829090,0.46719437,1962.6,1962.3,0.001]
[1770974829294,6.42314499,1962.5,1961.8,0.49675558]
[1770974829767,6.89033936,1962.5,1961.8,0.49675558]
[1770974831189,1.27395026,1962.4,1961.8,0.49675558]
[1770974831383,1.965,1962.3,1961.8,0.49675558]
[1770974832188,8.85533936,1962.3,1961.6,1.7711789]
[1770974832385,2.43219437,1962.3,1961.6,1.7711789]
[1770974832591,6.42314499,1962.0,1961.9,0.001]
[1770974832789,6.42314499,1962.0,1961.4,3.56232985]
[1770974833485,7.69738981,1962.0,1961.4,3.56232985]
[1770974833678,7.69738981,1962.0,1961.8,0.001]
[1770974834299,1.967,1961.9,1961.8,0.001]
[1770974840803,1.967,1961.9,1961.8,0.49775558]
[1770974841373,1.27400028,1962.4,1961.8,0.49775558]
[1770974841579,1.972,1962.3,1961.8,0.49775558]
[1770974842415,1.972,1962.3,1961.9,1.27427493]
[1770974842716,1.972,1962.3,1962.0,0.49675558]
[1770974846011,3.2460215,1962.3,1961.8,0.49775558]
[1770974846213,3.2460215,1962.3,1961.9,0.001]
[1770974846417,0.002,1962.2,1961.9,0.001]
[1770974846934,0.002,1962.2,1961.7,0.49675558]
[1770974847231,6.89233936,1962.2,1961.7,0.49675558]
[1770974847444,6.89233936,1962.2,1961.5,0.49675558]
[1770974848928,1.27608293,1962.2,1961.7,0.49675558]
[1770974850348,0.002,1962.2,1961.7,0.49675558]
[1770974850634,1.75980665,1962.2,1961.7,0.49665343]
[1770974850809,1.27610883,1962.2,1961.7,0.49665343]
[1770974851008,1.27610883,1962.2,1961.7,1.77103268]
[1770974852404,1.27610883,1962.2,1961.6,1.27441927]
[1770974852817,1.27610883,1962.2,1961.6,1.7710727]
[1770974853133,1.27610883,1962.2,1961.7,0.49665343]
[1770974856702,1.27610883,1962.2,1961.7,1.77105246]
[1770974856905,1.27610883,1962.2,1961.7,0.49665343]
[1770974857517,1.7398523,1962.2,1961.5,1.74064693]
[1770974858236,1.7398523,1962.2,1961.8,0.001]
[1770974859040,8.16299729,1962.2,1961.8,0.001]
[1770974861035,1.7398523,1962.2,1961.8,0.001]
[1770974861208,1.27610883,1962.2,1961.8,0.001]
[1770974863144,1.7398523,1962.2,1961.8,0.001]
[1770974865743,1.27610883,1962.2,1961.8,0.46716742]
[1770974866337,1.27610883,1962.2,1961.8,0.001]
[1770974866944,6.88688846,1962.1,1961.8,0.001]
[1770974867122,6.42314499,1962.1,1961.8,0.001]
[1770974867438,1.27610883,1962.2,1961.8,0.001]
[1770974867610,7.69925382,1962.2,1961.8,0.001]
[1770974868541,0.002,1962.2,1961.8,0.001]
[1770974870244,0.002,1962.2,1961.8,0.46716742]
[1770974871356,0.002,1962.1,1961.8,0.46716742]
[1770974872420,0.002,1962.1,1961.9,0.46616742]
[1770974873423,0.00063722,1962.1,1961.9,0.46616742]
[1770974874541,0.00063722,1962.1,1961.8,1.74150731]
[1770974875046,0.00063722,1962.1,1961.8,0.46716742]
[1770974875252,0.00063722,1962.1,1961.8,0.001]
[1770974878432,0.00063722,1962.1,1961.9,0.46616742]
[1770974878628,0.00063722,1962.1,1962.0,1.27420998]
[1770974878849,0.00063722,1962.1,1962.0,1.7403774]
[1770974880052,0.002,1962.2,1962.1,0.46616742]
[1770974880657,0.002,1962.3,1962.1,6.89002046]
[1770974881056,0.002,1962.3,1962.1,0.46616742]
[1770974881731,0.002,1962.3,1961.8,1.27531912]
[1770974881932,0.4997296,1962.3,1961.8,0.001]
[1770974882341,0.4997296,1962.3,1961.8,1.27533472]
[1770974882655,0.4997296,1962.3,1961.8,0.001]
[1770974882868,0.002,1962.3,1961.8,0.49249315]
[1770974883063,0.002,1962.3,1961.9,0.001]
[1770974883262,0.002,1962.0,1961.9,0.001]
[1770974884882,2.012,1962.0,1961.9,0.001]
[1770974885233,3.28620998,1962.0,1961.9,0.001]
[1770974887160,2.012,1962.0,1961.9,0.001]
[1770974887651,3.28620998,1962.0,1961.9,0.001]
[1770974888853,2.012,1962.0,1961.9,0.001]
[1770974893874,2.023,1962.3,1962.0,0.49149315]
[1770974894078,3.29701785,1962.3,1962.0,0.49149315]
[1770974894762,3.29701785,1962.3,1961.9,0.001]
[1770974895339,3.29701785,1962.3,1961.9,0.49249315]
[1770974895741,3.29701785,1962.3,1961.9,0.001]
[1770974896272,3.29701785,1962.3,1962.0,0.001]
[1770974896576,0.002,1962.2,1962.0,0.001]
[1770974903174,0.002,1962.2,1962.0,0.49249315]
[1770974905477,0.002,1962.2,1962.1,0.49149315]
[1770974906183,0.002,1962.2,1962.0,0.001]
[1770974908159,0.002,1962.2,1962.1,0.001]
[1770974915001,0.002,1962.6,1962.3,0.4550599]
[1770974915199,0.002,1963.0,1962.6,0.4550599]
[1770974915496,0.004,1963.0,1962.6,0.4550599]
[1770974915861,0.004,1963.0,1962.6,1.72883961]
[1770974916555,0.004,1963.0,1962.7,0.4550599]
[1770974918365,0.004,1963.0,1962.8,0.4550599]
[1770974918793,0.002,1963.0,1962.8,0.4550599]
[1770974919659,0.004,1963.0,1962.6,1.72884109]
[1770974919970,0.002,1962.9,1962.8,0.001]
[1770974920172,1.27562575,1962.9,1962.4,0.4550599]
[1770974920377,0.002,1962.8,1962.7,0.001]
[1770974922392,3.33662575,1962.9,1962.4,0.4550599]
[1770974922567,0.001,1962.7,1962.4,0.4550599]
[1770974922898,0.001,1962.7,1962.4,1.72900517]
[1770974923296,3.33662575,1962.9,1962.3,1.27396395]
[1770974923593,0.001,1962.7,1962.3,1.27396395]
[1770974923794,0.001,1962.7,1962.4,0.4550599]
[1770974924298,0.001,1962.7,1962.4,1.27391868]
[1770974924592,0.001,1962.7,1962.5,0.4550599]
[1770974924778,2.063,1962.9,1962.5,0.4550599]
[1770974924977,0.001,1962.8,1962.5,0.4550599]
[1770974925373,0.001,1962.8,1962.4,1.27391868]
[1770974925579,0.001,1962.7,1962.4,1.72897858]
[1770974926301,0.001,1962.7,1962.4,1.27391868]
[1770974926504,0.001,1962.7,1962.5,0.4550599]
[1770974927475,2.063,1962.9,1962.5,0.4550599]
[1770974927672,0.001,1962.8,1962.5,0.4550599]
[1770974928587,0.001,1962.8,1962.5,1.72892808]
[1770974929003,2.063,1962.9,1962.5,1.72892808]
[1770974929205,0.001,1962.8,1962.5,1.72892808]
[1770974929376,0.001,1962.8,1962.3,1.72905535]
[1770974929578,0.001,1962.7,1962.3,1.72905535]
[1770974930776,0.001,1962.7,1962.3,1.27399545]
[1770974930976,0.001,1962.7,1962.4,0.4550599]
[1770974931906,2.063,1962.9,1962.3,1.27399545]
[1770974932108,0.001,1962.8,1962.3,1.27399545]
[1770974932610,0.001,1962.8,1962.5,0.001]
[1770974933194,0.001,1962.7,1962.5,0.001]
[1770974933514,0.001,1962.7,1962.5,0.4560599]
[1770974935076,0.001,1962.7,1962.5,1.72988099]
[1770974935632,2.063,1962.9,1962.7,0.4550599]
[1770974935795,2.064,1962.9,1962.7,0.4550599]
[1770974937888,0.001,1962.8,1962.5,1.72989592]
[1770974938928,0.001,1962.8,1962.5,8.1498675]
[1770974939837,0.002,1962.9,1962.7,6.87503148]
[1770974940036,0.003,1962.9,1962.8,0.4550599]
[1770974940744,0.002,1963.0,1962.8,0.4550599]
[1770974941764,0.002,1963.0,1962.8,1.7287092]
[1770974943045,0.002,1963.0,1962.8,0.4550599]
[1770974943225,0.002,1963.0,1962.6,1.73289038]
[1770974944007,0.002,1963.0,1962.6,0.45910973]
[1770974944729,0.002,1963.0,1962.7,0.45910973]
[1770974945132,0.002,1963.0,1962.6,6.41997158]
[1770974945320,0.002,1962.9,1962.6,7.69378741]
[1770974945634,0.002,1962.9,1962.7,0.45910973]
[1770974945939,0.002,1962.9,1962.8,1.27369064]
[1770974946119,0.002,1962.9,1962.7,5.55409956]
[1770974946324,0.002,1962.9,1962.7,1.73286527]
[1770974947237,0.002,1963.0,1962.7,1.73286527]
[1770974947440,0.002,1963.0,1962.8,6.87908131]
[1770974947836,0.002,1963.0,1962.7,0.45910973]
[1770974948056,0.002,1963.0,1962.6,1.2737878]
[1770974949008,0.002,1963.0,1962.5,1.73395548]
[1770974949623,0.002,1963.0,1962.6,6.41997158]
[1770974950209,0.002,1963.0,1962.7,0.45910973]
[1770974950612,0.45990405,1963.0,1962.5,1.27487185]
[1770974950812,0.002,1963.0,1962.5,1.73398158]
[1770974951642,0.002,1963.0,1962.6,6.41997158]
[1770974951941,0.002,1963.0,1962.6,6.87908131]
[1770974953150,0.002,1963.0,1962.6,8.15286122]
[1770974953352,0.002,1963.0,1962.6,1.73288964]
[1770974954156,6.87787563,1962.9,1962.5,0.001]
[1770974954354,0.45990405,1963.0,1962.5,0.001]
[1770974957130,1.27362575,1962.9,1962.6,0.001]
[1770974957330,1.27562575,1962.9,1962.6,0.001]
[1770974958072,0.002,1962.9,1962.6,0.001]
[1770974958435,0.002,1962.9,1962.7,0.45910973]
[1770974958631,0.002,1962.9,1962.6,0.001]
[1770974958831,0.002,1962.9,1962.6,0.46010973]
[1770974959443,0.002,1962.9,1962.7,0.45910973]
[1770974960655,0.002,1962.9,1962.7,6.87908131]
[1770974962239,0.002,1962.9,1962.6,1.27480634]
[1770974962240,0.002,1962.9,1962.6,0.001]
[1770974964475,1.7335298,1962.9,1962.6,0.001]
[1770974964655,1.27562575,1962.9,1962.6,0.001]
[1770974964832,0.45790405,1962.7,1962.1,1.27511923]
[1770974965163,2.047,1962.7,1962.3,6.87908131]
[1770974965465,2.047,1962.7,1962.3,0.46010973]
[1770974965670,2.047,1962.7,1962.3,0.001]
[1770974966055,2.50490405,1962.7,1962.3,0.001]
[1770974967373,3.32077656,1962.7,1962.3,0.001]
[1770974969335,2.047,1962.7,1962.3,0.001]
[1770974969536,2.047,1962.7,1962.4,6.87908131]
[1770974969846,2.047,1962.7,1962.5,0.45910973]
[1770974972249,2.047,1962.7,1962.5,1.73298853]
[1770974972672,0.002,1962.8,1962.6,0.47055979]
[1770974973378,0.002,1962.8,1962.6,0.001]
[1770974973875,0.002,1962.8,1962.6,0.47055979]
[1770974974477,0.002,1962.8,1962.6,0.001]
[1770974978177,0.002,1962.8,1962.4,0.001]
[1770974978386,1.27569064,1962.8,1962.5,0.001]
[1770974980686,0.002,1962.8,1962.5,0.001]
[1770974981188,0.49293296,1962.8,1962.4,0.001]
[1770974981386,0.49293296,1962.8,1962.4,0.002]
[1770974983496,1.76668033,1962.8,1962.5,0.001]
[1770974983704,0.002,1962.7,1962.5,0.001]
[1770974986493,0.002,1962.7,1962.5,0.002]
[1770974987490,0.002,1962.7,1962.5,0.001]
[1770974989858,0.002,1962.7,1962.5,0.002]
[1770974990263,0.002,1962.7,1962.5,0.50090821]
[1770974990582,0.002,1962.7,1962.5,0.002]
[1770974991401,0.002,1962.7,1962.6,0.49890821]
[1770974991564,0.002,1962.9,1962.5,1.27485504]
[1770974991769,0.001,1962.9,1962.6,0.49890821]
[1770974993704,0.001,1962.9,1962.7,0.49890821]
[1770974994707,0.001,1962.9,1962.5,1.77375071]
[1770974994992,0.001,1962.9,1962.5,1.7737911]
[1770974995485,0.001,1962.9,1962.6,0.49890821]
[1770974996090,0.001,1962.9,1962.7,0.001]
[1770974996401,0.002,1962.8,1962.7,0.001]
[1770974997165,0.002,1962.8,1962.7,0.49990821]
[1770974997369,0.001,1962.9,1962.8,0.49890821]
[1770974997797,0.001,1962.9,1962.8,1.77259885]
[1770974998402,2.971,1963.5,1962.9,0.49890821]
[1770974998570,0.002,1963.4,1962.9,0.49890821]
[1770975000181,0.002,1963.4,1962.8,0.49890821]
[1770975000381,0.002,1963.4,1962.7,0.001]
[1770975000382,0.002,1963.3,1962.7,0.49990821]
[1770975000605,0.49293296,1963.3,1962.7,0.001]
[1770975001005,0.002,1963.2,1962.8,0.47357168]
[1770975001613,0.002,1963.1,1962.8,0.47357168]
[1770975001817,0.002,1963.3,1962.8,0.47357168]
[1770975002317,0.002,1963.2,1962.8,0.47357168]
[1770975003118,3.3263263,1963.4,1962.9,0.47357168]
[1770975003304,0.002,1963.3,1962.9,0.47357168]
[1770975004792,0.002,1963.2,1962.9,0.47357168]
[1770975004995,0.002,1963.2,1962.8,1.27365291]
[1770975005185,0.002,1963.1,1962.8,0.47357168]
[1770975005382,0.48903345,1963.3,1962.7,0.001]
[1770975005573,0.48903345,1963.3,1962.7,0.47457168]
[1770975005790,0.002,1963.2,1962.7,0.47457168]
[1770975006272,0.002,1963.1,1962.7,0.47457168]
[1770975006607,0.002,1963.2,1962.7,0.47457168]
[1770975007107,0.002,1963.1,1962.7,0.47457168]
[1770975008501,0.004,1963.1,1962.7,1.74830483]
[1770975009920,0.004,1963.1,1962.7,0.47457168]
[1770975010108,0.004,1963.1,1962.7,0.001]
[1770975010714,1.277496,1963.1,1962.7,0.001]
[1770975011217,0.004,1963.1,1962.7,0.001]
[1770975011891,0.00263698,1963.1,1962.7,0.001]
[1770975013216,0.002,1963.1,1962.7,0.001]
[1770975013795,0.48903345,1963.1,1962.7,0.001]
[1770975014916,0.002,1963.1,1962.7,0.001]
[1770975017834,0.002,1963.1,1962.7,0.47457168]
[1770975019917,0.48903345,1963.1,1962.5,0.001]
[1770975020120,0.48703345,1962.9,1962.5,0.001]
[1770975020621,0.48703345,1962.9,1962.8,0.001]
[1770975021906,1.7606592,1962.9,1962.8,0.001]
[1770975023713,3.32359918,1963.0,1962.8,0.001]
[1770975025143,3.81063263,1963.0,1962.8,0.001]
[1770975032950,0.002,1962.9,1962.8,0.001]
[1770975033822,1.58663119,1962.9,1962.8,0.001]
[1770975034025,0.48672781,1962.9,1962.8,0.001]
[1770975034319,0.48472781,1962.8,1962.5,0.001]
[1770975034541,2.064,1962.7,1962.5,0.001]
[1770975034722,2.064,1962.7,1962.5,0.47877662]
[1770975035055,2.066,1962.9,1962.5,0.47877662]
[1770975036662,3.83684887,1962.9,1962.5,0.001]
[1770975037067,3.33965028,1962.9,1962.5,0.001]
[1770975037571,1.10019494,1962.8,1962.4,0.47957392]
[1770975037736,3.33965028,1962.9,1962.5,0.47857392]
[1770975042259,3.33965028,1962.9,1962.4,0.47957392]
[1770975042464,1.10054286,1962.8,1962.4,0.47957392]
[1770975042628,3.33965028,1962.9,1962.4,0.47957392]
[1770975042828,1.10054307,1962.8,1962.4,0.47957392]
[1770975043051,3.33965028,1962.9,1962.4,0.47957392]
[1770975043253,1.1005431,1962.8,1962.4,0.47957392]
[1770975043461,3.33965028,1962.9,1962.4,0.47957392]
[1770975043649,3.33965028,1962.9,1962.4,1.75352151]
[1770975044165,2.066,1962.9,1962.5,0.47857392]
[1770975044459,3.33962965,1962.9,1962.5,0.47857392]
[1770975044671,3.28962965,1962.9,1962.5,0.47857392]
[1770975044870,2.016,1962.9,1962.5,0.47857392]
[1770975046374,2.016,1962.9,1962.6,0.001]
[1770975046561,0.002,1962.8,1962.6,0.001]
[1770975048935,0.002,1962.8,1962.6,0.47957392]
[1770975052339,0.49919859,1962.8,1962.5,0.001]
[1770975052544,0.002,1962.8,1962.5,0.001]
[1770975052885,0.002,1962.8,1962.5,0.47957392]
[1770975054345,0.002,1962.8,1962.6,0.47857392]
[1770975057769,0.002,1962.8,1962.5,0.001]
[1770975058298,0.002,1962.8,1962.5,0.47957392]
[1770975058450,0.002,1962.8,1962.5,1.75344725]
[1770975058792,0.002,1962.8,1962.7,0.001]
[1770975059292,0.002,1962.8,1962.7,0.47957392]
[1770975059504,0.002,1962.8,1962.7,0.001]
[1770975061780,3.6542079,1963.7,1962.7,0.001]
[1770975061974,2.64887149,1964.6,1963.5,0.46363029]
[1770975062174,0.47325415,1964.4,1963.9,1.681]
[1770975062401,2.87156075,1964.6,1964.3,1.35977092]
[1770975062584,3.022004,1964.6,1964.3,0.20594439]
[1770975062790,3.022004,1964.6,1964.2,1.8130279]
[1770975063092,1.599,1964.6,1964.2,1.8130279]
[1770975063281,2.87153413,1964.6,1964.1,2.27665819]
[1770975063488,2.87153413,1964.6,1964.1,0.46363029]
[1770975063789,1.599,1964.6,1964.1,1.73646321]
[1770975063972,1.599,1964.6,1964.1,0.46363029]
[1770975064170,2.87153234,1964.6,1964.1,0.46363029]
[1770975066204,0.003,1965.4,1964.2,0.46363029]
[1770975066373,0.003,1965.4,1965.1,2.54526631]
[1770975066574,0.003,1965.4,1965.1,0.46363029]
[1770975067078,2.077,1965.3,1965.1,0.46363029]
[1770975068414,2.077,1965.3,1965.2,0.46363029]
[1770975068920,1.10621549,1965.3,1965.2,0.46363029]
[1770975069078,0.003,1965.4,1965.2,0.46363029]
[1770975071291,0.002,1965.3,1965.2,0.46363029]
[1770975071784,0.002,1965.3,1965.0,0.46363029]
[1770975072405,0.002,1965.3,1965.0,1.73587635]
[1770975072577,0.002,1965.3,1965.1,0.46363029]
[1770975073224,0.005,1965.4,1965.1,0.46363029]
[1770975074495,0.005,1965.4,1965.1,1.7358249]
[1770975075219,0.005,1965.4,1965.2,0.46363029]
[1770975075741,2.079,1965.5,1965.2,0.46363029]
[1770975075889,1.50817722,1965.5,1965.2,0.46363029]
[1770975077022,1.50817722,1965.5,1965.0,1.73585051]
[1770975077705,1.50817722,1965.5,1965.1,0.46363029]
[1770975078408,1.50817722,1965.5,1965.2,1.27213515]
[1770975078607,1.50817722,1965.5,1965.2,0.46363029]
[1770975078800,1.48155311,1965.5,1965.2,0.46363029]
[1770975079490,1.48155311,1965.5,1964.8,0.46363029]
[1770975079695,2.75352689,1965.5,1965.0,0.46363029]
[1770975079896,1.48155311,1965.5,1965.0,0.46363029]
[1770975080701,1.48155311,1965.5,1965.1,1.73583017]
[1770975081702,1.48155311,1965.5,1965.1,0.46363029]
[1770975082131,2.75350131,1965.5,1965.1,0.46363029]
[1770975082424,1.48155311,1965.5,1965.1,0.46363029]
[1770975082628,2.75350942,1965.5,1965.1,0.46363029]
[1770975083033,2.7535126,1965.5,1965.1,0.46363029]
[1770975083241,2.7535126,1965.5,1965.2,1.07090422]
[1770975083433,2.7535126,1965.5,1965.1,0.46363029]
[1770975083633,2.75351765,1965.5,1965.2,1.07071508]
[1770975083838,2.75351765,1965.5,1965.1,0.46363029]
[1770975083839,2.75350911,1965.5,1965.1,0.46363029]
[1770975084131,2.75351508,1965.5,1965.2,1.07065689]
[1770975084433,2.75351508,1965.5,1965.1,0.46363029]
[1770975084630,0.002,1965.4,1965.2,1.07118147]
[1770975084804,0.002,1965.4,1965.1,0.46363029]
[1770975085002,0.002,1965.4,1965.2,2.80689642]
[1770975085205,0.002,1965.4,1965.3,1.53551551]
[1770975086637,0.002,1965.4,1965.3,1.07188522]
[1770975087222,1.48355311,1965.5,1965.3,1.07188522]
[1770975087406,1.48355311,1965.5,1965.4,1.07188522]
[1770975088310,1.45959141,1965.5,1965.4,1.07188522]
[1770975088906,2.88197564,1965.5,1965.1,1.8130279]
[1770975089106,2.73153239,1965.5,1964.9,2.27665819]
[1770975089344,2.73153239,1965.5,1965.0,1.8130279]
[1770975089545,2.73153239,1965.5,1964.9,4.99620004]
[1770975089750,2.73153239,1965.5,1964.9,2.27665819]
[1770975090811,2.88197564,1965.5,1964.9,0.46363029]
[1770975091017,2.88197564,1965.5,1964.8,2.2968516]
[1770975091219,2.88197564,1965.5,1965.0,1.8130279]
[1770975091647,2.88197564,1965.5,1964.9,1.8130279]
[1770975092348,0.15044325,1965.2,1964.7,0.001]
[1770975092646,0.15044325,1965.0,1964.5,0.001]
[1770975092814,2.073,1964.9,1964.5,0.001]
[1770975093015,2.073,1964.9,1964.5,0.4848237]
[1770975093445,1.27239413,1964.8,1964.5,0.4848237]
[1770975093641,1.27239413,1964.8,1964.5,0.001]
[1770975096446,2.073,1964.9,1964.5,0.4766791]